[Event "Speed Chess Championship 2020"]
[Site "Online"]
[Date "2020.11.12"]
[Round "1.1"]
[White "Martirosyan, Haik M."]
[Black "Nakamura, Hikaru"]
[Result "0-1"]
[ECO "A41"]
[WhiteElo "2622"]
[BlackElo "2736"]
[Annotator "ChessBase"]
[PlyCount "118"]
[EventDate "2020.10.31"]
[EventType "k.o."]
[SourceTitle "playchess.com"]
[Source "ChessBase"]
[SourceQuality "1"]
[TimeControl "60+1"]

1. d4 {[%emt 0:00:01]} g6 {[%emt 0:00:01]} 2. Nf3 {[%emt 0:00:00]} Bg7 {[%emt 0:00:00]} 3. g3 {[%emt 0:00:00]} d6 {[%emt 0:00:00]} 4. Bg2 {[%emt 0:00:00]} Bd7 {[%emt 0:00:00]} 5. O-O {[%emt 0:00:01]} Qc8 {[%emt 0:00:00]} 6. e4 {[%emt 0:00:01]} Nc6 {[%emt 0:00:01]} 7. d5 {[%emt 0:00:01]} Ne5 {[%emt 0:00:00]} 8. Nxe5 {[%emt 0:00:00]} Bxe5 {[%emt 0:00:01]} 9. Nd2 {[%emt 0:00:01]} Bh3 {[%emt 0:00:00]} 10. Nf3 {[%emt 0:00:01]} h5 {[%emt 0:00:01]} 11. Bxh3 {[%emt 0:00:03]} Qxh3 {[%emt 0:00:00]} 12. Ng5 {[%emt 0:00:01]} Qd7 {[%emt 0:00:01]} 13. h4 {[%emt 0:00:00]} Nh6 {[%emt 0:00:01]} 14. Kg2 {[%emt 0:00:04]} c6 {[%emt 0:00:01]} 15. c4 {[%emt 0:00:01]} Rc8 {[%emt 0:00:00]} 16. Qb3 {[%emt 0:00:02]} O-O {[%emt 0:00:05]} 17. Bd2 {[%emt 0:00:06]} Bg7 {[%emt 0:00:02]} 18. Rac1 {[%emt 0:00:03]} Ng4 {[%emt 0:00:05]} 19. Bc3 {[%emt 0:00:01]} Bf6 {[%emt 0:00:04]} 20. Nf3 {[%emt 0:00:08]} cxd5 {[%emt 0:00:01]} 21. exd5 {[%emt 0:00:05]} Qf5 {[%emt 0:00:01]} 22. Rfe1 {[%emt 0:00:04]} Rc7 {[%emt 0:00:04]} 23. Bxf6 {[%emt 0:00:06]} Qxf6 {[%emt 0:00:00]} 24. Qc3 {[%emt 0:00:06]} Rfc8 {[%emt 0:00:01]} 25. Re4 {[%emt 0:00:09]} b5 {[%emt 0:00:16]} 26. b3 {[%emt 0:00:05]} Qf5 {[%emt 0:00:00]} 27. Qe1 {[%emt 0:00:05]} bxc4 {[%emt 0:00:02]} 28. Rcxc4 {[%emt 0:00:01]} Rxc4 {[%emt 0:00:01]} 29. bxc4 {[%emt 0:00:00]} Nf6 {[%emt 0:00:02]} 30. Rxe7 {[%emt 0:00:02]} Rxc4 {[%emt 0:00:01]} 31. Rxa7 {[%emt 0:00:03]} Qxd5 {[%emt 0:00:01]} 32. Qe7 {[%emt 0:00:01]} Kg7 {[%emt 0:00:01]} 33. Ra3 {[%emt 0:00:04]} Rc2 {[%emt 0:00:01]} 34. Kg1 {[%emt 0:00:03]} Rc1+ {[%emt 0:00:02]} 35. Kg2 {[%emt 0:00:01]} Rc2 {[%emt 0:00:01]} 36. Kg1 {[%emt 0:00:01]} Ng4 {[%emt 0:00:01]} 37. Qe1 {[%emt 0:00:03]} Qc5 {[%emt 0:00:03]} 38. Ra5 {[%emt 0:00:02]} Qxf2+ {[%emt 0:00:01]} 39. Qxf2 {[%emt 0:00:00]} Rxf2 {[%emt 0:00:00]} 40. Ng5 {[%emt 0:00:02]} Rf6 {[%emt 0:00:04]} 41. Ra7 {[%emt 0:00:00]} Ne3 {[%emt 0:00:01]} 42. a4 {[%emt 0:00:01]} d5 {[%emt 0:00:00]} 43. a5 {[%emt 0:00:01]} d4 {[%emt 0:00:01]} 44. Rd7 {[%emt 0:00:00]} Nf5 {[%emt 0:00:01]} 45. Kg2 {[%emt 0:00:00]} Kg8 {[%emt 0:00:01]} 46. a6 {[%emt 0:00:01]} Rxa6 {[%emt 0:00:04]} 47. Nxf7 {[%emt 0:00:01]} Ra3 {[%emt 0:00:02]} 48. Ne5 {[%emt 0:00:01]} Rxg3+ {[%emt 0:00:01]} 49. Kf2 {[%emt 0:00:01]} g5 {[%emt 0:00:12]} 50. hxg5 {[%emt 0:00:02]} h4 {[%emt 0:00:00]} 51. Nf3 {[%emt 0:00:01]} h3 {[%emt 0:00:02]} 52. Rd5 {[%emt 0:00:01]} Rg2+ {[%emt 0:00:01]} 53. Ke1 {[%emt 0:00:01]} Ne3 {[%emt 0:00:01]} 54. Rd8+ {[%emt 0:00:03]} Kf7 {[%emt 0:00:01]} 55. Rd6 {[%emt 0:00:02]} h2 {[%emt 0:00:01]} 56. Rh6 {[%emt 0:00:00]} Rg1+ {[%emt 0:00:01]} 57. Kf2 {[%emt 0:00:01]} h1=Q {[%emt 0:00:01]} 58. Ne5+ {[%emt 0:00:01]} Kg7 {[%emt 0:00:01]} 59. Rxh1 {[%emt 0:00:01]} Rxh1 {[%emt 0:00:01]} 0-1

[Event "Speed Chess Championship 2020"]
[Site "Online"]
[Date "2020.11.08"]
[Round "1.6"]
[White "Abdusattorov, Nodirbek"]
[Black "So, Wesley"]
[Result "1-0"]
[ECO "C48"]
[WhiteElo "2662"]
[BlackElo "2816"]
[Annotator "ChessBase"]
[PlyCount "89"]
[EventDate "2020.10.31"]
[EventType "k.o."]
[SourceTitle "playchess.com"]
[Source "ChessBase"]
[SourceQuality "1"]
[TimeControl "300+1"]

1. e4 {[%emt 0:00:02]} e5 {[%emt 0:00:01]} 2. Nf3 {[%emt 0:00:01]} Nc6 {[%emt 0:00:00]} 3. Nc3 {[%emt 0:00:01]} Nf6 {[%emt 0:00:01]} 4. Bb5 {[%emt 0:00:01]} Nd4 {[%emt 0:00:01]} 5. O-O {[%emt 0:00:01]} c6 {[%emt 0:00:03]} 6. Bd3 {[%emt 0:00:02]} Nxf3+ {[%emt 0:00:02]} 7. Qxf3 {[%emt 0:00:00]} d6 {[%emt 0:00:00]} 8. Be2 {[%emt 0:00:02]} Bg4 {[%emt 0:00:03]} 9. Qe3 {[%emt 0:00:01]} Qb6 {[%emt 0:00:01]} 10. d3 {[%emt 0:00:00]} Qxe3 {[%emt 0:00:04]} 11. Bxe3 {[%emt 0:00:01]} Bxe2 {[%emt 0:00:03]} 12. Nxe2 {[%emt 0:00:00]} d5 {[%emt 0:00:09]} 13. f3 {[%emt 0:00:01]} Bd6 {[%emt 0:00:04]} 14. a4 {[%emt 0:00:02]} a5 {[%emt 0:00:07]} 15. c3 {[%emt 0:00:15]} dxe4 {[%emt 0:00:04]} 16. dxe4 {[%emt 0:00:08]} Nd7 {[%emt 0:00:00]} 17. Kf2 {[%emt 0:00:02]} Bc5 {[%emt 0:00:01]} 18. Rfd1 {[%emt 0:00:05]} O-O-O {[%emt 0:00:07]} 19. Nc1 {[%emt 0:00:28]} Bxe3+ {[%emt 0:00:10]} 20. Kxe3 {[%emt 0:00:00]} Nc5 {[%emt 0:00:01]} 21. Rxd8+ {[%emt 0:00:02]} Rxd8 {[%emt 0:00:01]} 22. b4 {[%emt 0:00:00]} axb4 {[%emt 0:00:16]} 23. cxb4 {[%emt 0:00:00]} Ne6 {[%emt 0:00:00]} 24. Nd3 {[%emt 0:00:04]} f6 {[%emt 0:00:02]} 25. h4 {[%emt 0:00:12]} Kc7 {[%emt 0:00:05]} 26. a5 {[%emt 0:00:02]} Rd4 {[%emt 0:00:32]} 27. Rc1 {[%emt 0:00:19]} Rd8 {[%emt 0:00:16]} 28. g3 {[%emt 0:00:03]} h5 {[%emt 0:00:02]} 29. f4 {[%emt 0:00:05]} exf4+ {[%emt 0:00:06]} 30. gxf4 {[%emt 0:00:00]} f5 {[%emt 0:00:17]} 31. exf5 {[%emt 0:00:24]} Nd4 {[%emt 0:00:02]} 32. Rc5 {[%emt 0:00:00]} b6 {[%emt 0:00:15]} 33. Re5 {[%emt 0:00:34]} Nc2+ {[%emt 0:00:03]} 34. Ke2 {[%emt 0:00:00]} Nd4+ {[%emt 0:00:03]} 35. Kf2 {[%emt 0:00:01]} bxa5 {[%emt 0:00:18]} 36. bxa5 {[%emt 0:00:04]} Nxf5 {[%emt 0:00:01]} 37. Rxf5 {[%emt 0:00:03]} Rxd3 {[%emt 0:00:01]} 38. Rf7+ {[%emt 0:00:01]} Kd6 {[%emt 0:00:05]} 39. Rxg7 {[%emt 0:00:17]} Ra3 {[%emt 0:00:03]} 40. Rg5 {[%emt 0:00:01]} c5 {[%emt 0:00:01]} 41. a6 {[%emt 0:00:01]} c4 {[%emt 0:00:15]} 42. Rxh5 {[%emt 0:00:02]} Kc6 {[%emt 0:00:19]} 43. Rg5 {[%emt 0:00:16]} Kb6 {[%emt 0:00:04]} 44. f5 {[%emt 0:00:12]} Rxa6 {[%emt 0:00:18]} 45. Rg6+ {[%emt 0:00:02]} 1-0

[Event "Speed Chess Championship 2020"]
[Site "Online"]
[Date "2020.11.08"]
[Round "1.8"]
[White "Abdusattorov, Nodirbek"]
[Black "So, Wesley"]
[Result "1-0"]
[ECO "B22"]
[WhiteElo "2662"]
[BlackElo "2816"]
[Annotator "ChessBase"]
[PlyCount "67"]
[EventDate "2020.10.31"]
[EventType "k.o."]
[SourceTitle "playchess.com"]
[Source "ChessBase"]
[SourceQuality "1"]
[TimeControl "300+1"]

1. e4 {[%emt 0:00:01]} c5 {[%emt 0:00:01]} 2. c3 {[%emt 0:00:02]} Nf6 {[%emt 0:00:02]} 3. e5 {[%emt 0:00:02]} Nd5 {[%emt 0:00:00]} 4. Nf3 {[%emt 0:00:00]} d6 {[%emt 0:00:01]} 5. d4 {[%emt 0:00:01]} cxd4 {[%emt 0:00:00]} 6. cxd4 {[%emt 0:00:00]} Nc6 {[%emt 0:00:01]} 7. Bc4 {[%emt 0:00:01]} Nb6 {[%emt 0:00:01]} 8. Bb5 {[%emt 0:00:01]} dxe5 {[%emt 0:00:01]} 9. Nxe5 {[%emt 0:00:04]} Bd7 {[%emt 0:00:00]} 10. Nxd7 {[%emt 0:00:00]} Qxd7 {[%emt 0:00:00]} 11. O-O {[%emt 0:00:03]} e6 {[%emt 0:00:01]} 12. Nc3 {[%emt 0:00:01]} a6 {[%emt 0:00:01]} 13. Bxc6 {[%emt 0:00:17]} Qxc6 {[%emt 0:00:00]} 14. Re1 {[%emt 0:00:27]} Bb4 {[%emt 0:00:11]} 15. Qg4 {[%emt 0:00:05]} Bxc3 {[%emt 0:00:33]} 16. bxc3 {[%emt 0:00:03]} Kf8 {[%emt 0:00:07]} 17. Bf4 {[%emt 0:00:20]} h5 {[%emt 0:00:10]} 18. Qg3 {[%emt 0:00:05]} h4 {[%emt 0:00:03]} 19. Qg4 {[%emt 0:00:01]} Nd5 {[%emt 0:00:03]} 20. Be5 {[%emt 0:00:23]} f6 {[%emt 0:00:02]} 21. c4 {[%emt 0:00:01]} Ne7 {[%emt 0:00:32]} 22. Bxf6 {[%emt 0:01:13]} gxf6 {[%emt 0:00:00]} 23. d5 {[%emt 0:00:01]} exd5 {[%emt 0:00:38]} 24. Re6 {[%emt 0:00:08]} Qxc4 {[%emt 0:00:01]} 25. Rxf6+ {[%emt 0:00:04]} Ke8 {[%emt 0:00:00]} 26. Qg7 {[%emt 0:00:40]} Kd7 {[%emt 0:00:02]} 27. Re1 {[%emt 0:00:04]} Rae8 {[%emt 0:00:01]} 28. Rfe6 {[%emt 0:00:30]} Qc5 {[%emt 0:00:01]} 29. Qg4 {[%emt 0:00:07]} Kd8 {[%emt 0:00:08]} 30. Qf4 {[%emt 0:00:28]} Nc6 {[%emt 0:00:13]} 31. Qf6+ {[%emt 0:00:04]} Kd7 {[%emt 0:00:01]} 32. Qg7+ {[%emt 0:00:04]} Re7 {[%emt 0:00:04]} 33. Rxe7+ {[%emt 0:00:02]} Nxe7 {[%emt 0:00:01]} 34. Qxh8 {[%emt 0:00:00]} 1-0

[Event "Speed Chess Championship 2020"]
[Site "Online"]
[Date "2020.11.15"]
[Round "1.9"]
[White "Duda, Jan-Krzysztof"]
[Black "Caruana, Fabiano"]
[Result "1-0"]
[ECO "C11"]
[WhiteElo "2743"]
[BlackElo "2823"]
[Annotator "ChessBase"]
[PlyCount "65"]
[EventDate "2020.10.31"]
[EventType "k.o."]
[EventCountry "NET"]
[SourceTitle "playchess.com"]
[Source "ChessBase"]
[SourceQuality "1"]
[TimeControl "300+1"]

1. e4 {[%emt 0:00:01]} e6 {[%emt 0:00:01]} 2. d4 {[%emt 0:00:01]} d5 {[%emt 0:00:00]} 3. Nc3 {[%emt 0:00:01]} Nf6 {[%emt 0:00:01]} 4. e5 {[%emt 0:00:00]} Nfd7 {[%emt 0:00:00]} 5. Nce2 {[%emt 0:00:01]} c5 {[%emt 0:00:01]} 6. c3 {[%emt 0:00:00]} Nc6 {[%emt 0:00:01]} 7. f4 {[%emt 0:00:01]} a5 {[%emt 0:00:04]} 8. Nf3 {[%emt 0:00:01]} a4 {[%emt 0:00:00]} 9. Be3 {[%emt 0:00:04]} Be7 {[%emt 0:00:04]} 10. Qd2 {[%emt 0:00:02]} O-O {[%emt 0:00:01]} 11. h4 {[%emt 0:00:03]} b5 {[%emt 0:00:04]} 12. dxc5 {[%emt 0:00:46]} Nxc5 {[%emt 0:00:03]} 13. Bxc5 {[%emt 0:00:01]} Bxc5 {[%emt 0:00:02]} 14. Ned4 {[%emt 0:00:00]} Nxd4 {[%emt 0:00:10]} 15. cxd4 {[%emt 0:00:01]} Be7 {[%emt 0:00:09]} 16. Kf2 {[%emt 0:00:07]} b4 {[%emt 0:00:07]} 17. Rc1 {[%emt 0:00:04]} Qb6 {[%emt 0:00:15]} 18. g4 {[%emt 0:00:17]} Bd7 {[%emt 0:00:05]} 19. Kg3 {[%emt 0:00:02]} Rfc8 {[%emt 0:00:06]} 20. Bd3 {[%emt 0:00:03]} b3 {[%emt 0:00:35]} 21. a3 {[%emt 0:00:07]} Rxc1 {[%emt 0:00:03]} 22. Rxc1 {[%emt 0:00:00]} Rc8 {[%emt 0:00:01]} 23. Re1 {[%emt 0:00:19]} Bb5 {[%emt 0:00:19]} 24. Bb1 {[%emt 0:00:01]} Qc7 {[%emt 0:02:00]} 25. h5 {[%emt 0:00:03]} Bd8 {[%emt 0:00:14]} 26. Kf2 {[%emt 0:00:33]} Qa5 {[%emt 0:00:05]} 27. Qe3 {[%emt 0:00:02]} Qa7 {[%emt 0:00:14]} 28. Rg1 {[%emt 0:00:16]} Bb6 {[%emt 0:00:08]} 29. f5 {[%emt 0:00:05]} Rc4 {[%emt 0:00:02]} 30. Rd1 {[%emt 0:00:01]} exf5 {[%emt 0:00:12]} 31. gxf5 {[%emt 0:00:00]} Rc6 {[%emt 0:00:04]} 32. f6 {[%emt 0:00:07]} Qd7 {[%emt 0:00:14]} 33. Qg5 {[%emt 0:00:04]} 1-0

[Event "Speed Chess Championship 2020"]
[Site "Online"]
[Date "2020.11.16"]
[Round "1.9"]
[White "Artemiev, Vladislav"]
[Black "Giri, Anish"]
[Result "1/2-1/2"]
[ECO "A28"]
[WhiteElo "2708"]
[BlackElo "2764"]
[Annotator "ChessBase"]
[PlyCount "118"]
[EventDate "2020.10.31"]
[EventType "k.o."]
[EventCountry "NET"]
[SourceTitle "playchess.com"]
[Source "ChessBase"]
[SourceQuality "1"]
[TimeControl "300+1"]

1. c4 {[%emt 0:00:01]} e5 {[%emt 0:00:02]} 2. Nc3 {[%emt 0:00:01]} Nf6 {[%emt 0:00:02]} 3. Nf3 {[%emt 0:00:01]} Nc6 {[%emt 0:00:01]} 4. d3 {[%emt 0:00:01]} d5 {[%emt 0:00:03]} 5. cxd5 {[%emt 0:00:01]} Nxd5 {[%emt 0:00:00]} 6. e3 {[%emt 0:00:02]} g6 {[%emt 0:00:08]} 7. Bd2 {[%emt 0:00:16]} Bg7 {[%emt 0:00:13]} 8. a3 {[%emt 0:00:02]} a5 {[%emt 0:00:07]} 9. Be2 {[%emt 0:00:02]} O-O {[%emt 0:00:01]} 10. O-O {[%emt 0:00:01]} Nxc3 {[%emt 0:00:04]} 11. Bxc3 {[%emt 0:00:01]} Be6 {[%emt 0:00:01]} 12. Rc1 {[%emt 0:00:35]} a4 {[%emt 0:00:02]} 13. Nd2 {[%emt 0:00:01]} Na5 {[%emt 0:00:12]} 14. Bb4 {[%emt 0:00:28]} Re8 {[%emt 0:00:02]} 15. Qc2 {[%emt 0:00:01]} c6 {[%emt 0:00:10]} 16. Bd1 {[%emt 0:01:08]} Nb3 {[%emt 0:00:12]} 17. Nxb3 {[%emt 0:00:01]} Bxb3 {[%emt 0:00:00]} 18. Qe2 {[%emt 0:00:05]} Bd5 {[%emt 0:00:35]} 19. Qd2 {[%emt 0:00:25]} Qd7 {[%emt 0:00:07]} 20. Re1 {[%emt 0:00:09]} b6 {[%emt 0:00:09]} 21. e4 {[%emt 0:00:01]} Be6 {[%emt 0:00:03]} 22. Bc3 {[%emt 0:00:09]} c5 {[%emt 0:00:03]} 23. Qe3 {[%emt 0:00:06]} Qd6 {[%emt 0:00:18]} 24. h3 {[%emt 0:00:02]} h5 {[%emt 0:00:02]} 25. g4 {[%emt 0:00:03]} hxg4 {[%emt 0:00:10]} 26. Bxg4 {[%emt 0:00:02]} Bf6 {[%emt 0:00:09]} 27. Kg2 {[%emt 0:00:11]} Kg7 {[%emt 0:00:06]} 28. Rh1 {[%emt 0:00:18]} Rh8 {[%emt 0:00:10]} 29. Rcf1 {[%emt 0:00:01]} Rh4 {[%emt 0:00:10]} 30. Qg3 {[%emt 0:00:07]} Rah8 {[%emt 0:00:01]} 31. f4 {[%emt 0:00:16]} Qd7 {[%emt 0:01:07]} 32. f5 {[%emt 0:00:18]} gxf5 {[%emt 0:00:08]} 33. Bxf5+ {[%emt 0:00:07]} Kf8 {[%emt 0:00:10]} 34. Bxe6 {[%emt 0:00:01]} Qxe6 {[%emt 0:00:02]} 35. Rxf6 {[%emt 0:00:00]} Qxf6 {[%emt 0:00:01]} 36. Bxe5 {[%emt 0:00:00]} Qh6 {[%emt 0:00:29]} 37. Bxh8 {[%emt 0:00:02]} Qd2+ {[%emt 0:00:00]} 38. Qf2 {[%emt 0:00:06]} Qg5+ {[%emt 0:00:02]} 39. Kh2 {[%emt 0:00:20]} Rxh8 {[%emt 0:00:01]} 40. Rf1 {[%emt 0:00:00]} Qe5+ {[%emt 0:00:02]} 41. Qf4 {[%emt 0:00:01]} Qxf4+ {[%emt 0:00:08]} 42. Rxf4 {[%emt 0:00:00]} Ke7 {[%emt 0:00:01]} 43. Kg3 {[%emt 0:00:03]} Ke6 {[%emt 0:00:02]} 44. h4 {[%emt 0:00:01]} b5 {[%emt 0:00:01]} 45. Rf5 {[%emt 0:00:02]} Rd8 {[%emt 0:00:01]} 46. Rxc5 {[%emt 0:00:04]} Rxd3+ {[%emt 0:00:01]} 47. Kg4 {[%emt 0:00:01]} Rb3 {[%emt 0:00:02]} 48. Rc2 {[%emt 0:00:01]} b4 {[%emt 0:00:01]} 49. axb4 {[%emt 0:00:01]} Rxb4 {[%emt 0:00:00]} 50. Kf3 {[%emt 0:00:01]} f5 {[%emt 0:00:03]} 51. exf5+ {[%emt 0:00:01]} Kxf5 {[%emt 0:00:00]} 52. h5 {[%emt 0:00:00]} Kg5 {[%emt 0:00:02]} 53. Rh2 {[%emt 0:00:02]} Kh6 {[%emt 0:00:03]} 54. Ke3 {[%emt 0:00:01]} a3 {[%emt 0:00:01]} 55. bxa3 {[%emt 0:00:01]} Rb3+ {[%emt 0:00:00]} 56. Kd4 {[%emt 0:00:01]} Rxa3 {[%emt 0:00:01]} 57. Ke4 {[%emt 0:00:00]} Ra5 {[%emt 0:00:00]} 58. Kf4 {[%emt 0:00:01]} Rxh5 {[%emt 0:00:01]} 59. Rxh5+ {[%emt 0:00:00]} Kxh5 {[%emt 0:00:00]} 1/2-1/2

[Event "Speed Chess Championship 2020"]
[Site "Online"]
[Date "2020.11.08"]
[Round "1.10"]
[White "Abdusattorov, Nodirbek"]
[Black "So, Wesley"]
[Result "1/2-1/2"]
[ECO "B90"]
[WhiteElo "2662"]
[BlackElo "2816"]
[Annotator "ChessBase"]
[PlyCount "48"]
[EventDate "2020.10.31"]
[EventType "k.o."]
[SourceTitle "playchess.com"]
[Source "ChessBase"]
[SourceQuality "1"]
[TimeControl "300+1"]

1. e4 {[%emt 0:00:01]} c5 {[%emt 0:00:01]} 2. Nf3 {[%emt 0:00:02]} d6 {[%emt 0:00:00]} 3. d4 {[%emt 0:00:00]} cxd4 {[%emt 0:00:01]} 4. Nxd4 {[%emt 0:00:01]} Nf6 {[%emt 0:00:00]} 5. Nc3 {[%emt 0:00:00]} a6 {[%emt 0:00:01]} 6. Be3 {[%emt 0:00:01]} e5 {[%emt 0:00:01]} 7. Nb3 {[%emt 0:00:01]} Be6 {[%emt 0:00:01]} 8. Qd2 {[%emt 0:00:01]} Nbd7 {[%emt 0:00:11]} 9. O-O-O {[%emt 0:00:03]} b5 {[%emt 0:00:17]} 10. f3 {[%emt 0:00:03]} h5 {[%emt 0:00:05]} 11. g3 {[%emt 0:00:01]} Rc8 {[%emt 0:00:03]} 12. Kb1 {[%emt 0:00:08]} Be7 {[%emt 0:00:01]} 13. Nd5 {[%emt 0:00:01]} Bxd5 {[%emt 0:00:03]} 14. exd5 {[%emt 0:00:00]} Nb6 {[%emt 0:00:01]} 15. Bxb6 {[%emt 0:00:04]} Qxb6 {[%emt 0:00:00]} 16. Bh3 {[%emt 0:00:01]} Rb8 {[%emt 0:00:26]} 17. Rhe1 {[%emt 0:00:08]} O-O {[%emt 0:00:04]} 18. f4 {[%emt 0:00:00]} Rfe8 {[%emt 0:00:36]} 19. fxe5 {[%emt 0:00:05]} dxe5 {[%emt 0:00:00]} 20. d6 {[%emt 0:00:25]} Red8 {[%emt 0:00:07]} 21. d7 {[%emt 0:00:10]} e4 {[%emt 0:00:14]} 22. Qe2 {[%emt 0:01:02]} g6 {[%emt 0:00:05]} 23. Nd2 {[%emt 0:00:06]} Nxd7 {[%emt 0:00:04]} 24. Nxe4 {[%emt 0:00:03]} Nf6 {[%emt 0:00:03]} 1/2-1/2

[Event "Speed Chess Championship 2020"]
[Site "Online"]
[Date "2020.11.08"]
[Round "1.11"]
[White "So, Wesley"]
[Black "Abdusattorov, Nodirbek"]
[Result "1-0"]
[ECO "D11"]
[WhiteElo "2816"]
[BlackElo "2662"]
[Annotator "RC"]
[PlyCount "95"]
[EventDate "2020.10.31"]
[EventType "k.o."]
[SourceTitle "playchess.com"]
[Source "ChessBase"]
[SourceQuality "1"]
[TimeControl "180+1"]

1. Nf3 {[%emt 0:00:05]} d5 {[%emt 0:00:02]} 2. e3 {[%emt 0:00:00]} Nf6 {[%emt 0:00:02]} 3. c4 {[%emt 0:00:01]} c6 {[%emt 0:00:01]} 4. Nc3 {[%emt 0:00:00]} Bg4 {[%emt 0:00:02]} 5. d4 {[%emt 0:00:05]} Bxf3 {[%emt 0:00:08]} 6. Qxf3 {[%emt 0:00:01]} e6 {[%emt 0:00:01]} 7. a3 {[%emt 0:00:02]} Nbd7 {[%emt 0:00:01]} 8. g4 {[%emt 0:00:01]} dxc4 {[%emt 0:00:08]} 9. Bxc4 {[%emt 0:00:01]} Nd5 {[%emt 0:00:05]} 10. e4 {[%emt 0:00:19]} N5b6 {[%emt 0:00:03]} 11. Ba2 {[%emt 0:00:02]} c5 {[%emt 0:00:13]} 12. d5 {[%emt 0:00:05]} c4 {[%emt 0:00:01]} 13. dxe6 {[%emt 0:00:09]} fxe6 {[%emt 0:00:00]} 14. O-O {[%emt 0:00:05]} Bc5 {[%emt 0:00:04]} 15. Be3 {[%emt 0:00:16]} Qf6 {[%emt 0:00:11]} 16. Qe2 {[%emt 0:00:07]} Bxe3 {[%emt 0:00:15]} 17. fxe3 {[%emt 0:00:00]} Qg5 {[%emt 0:00:04]} 18. Bxc4 {[%emt 0:00:01]} Nxc4 {[%emt 0:00:16]} 19. Qxc4 {[%emt 0:00:00]} Ke7 {[%emt 0:00:23]} 20. Rf4 {[%emt 0:00:19]} Qc5 {[%emt 0:00:09]} 21. Qd4 {[%emt 0:00:06]} Qxd4 {[%emt 0:00:09]} 22. exd4 {[%emt 0:00:00]} Rhf8 {[%emt 0:00:01]} 23. Raf1 {[%emt 0:00:04]} Rxf4 {[%emt 0:00:01]} 24. Rxf4 {[%emt 0:00:01]} Rc8 {[%emt 0:00:00]} 25. e5 {[%emt 0:00:11]} Nb6 {[%emt 0:00:03]} 26. Rf3 {[%emt 0:00:03]} Rd8 {[%emt 0:00:12]} 27. Nb5 {[%emt 0:00:03]} Nc8 {[%emt 0:00:27]} 28. Rc3 {[%emt 0:00:02]} a6 {[%emt 0:00:01]} 29. Rc7+ {[%emt 0:00:01]} Kf8 {[%emt 0:00:01]} 30. Nc3 {[%emt 0:00:05]} Ne7 {[%emt 0:00:00]} 31. Rxb7 {[%emt 0:00:15]} Rxd4 {[%emt 0:00:01]} 32. h3 {[%emt 0:00:02]} Ng6 {[%emt 0:00:02]} 33. Rb6 {[%emt 0:00:02]} Ke7 {[%emt 0:00:06]} 34. Kf2 {[%emt 0:00:16]} Nxe5 {[%emt 0:00:01]} 35. Ke3 {[%emt 0:00:02]} Rd6 {[%emt 0:00:09]} 36. Rb7+ {[%emt 0:00:02]} Rd7 {[%emt 0:00:03]} 37. Rxd7+ {[%emt 0:00:01]} Kxd7 {[%emt 0:00:00]} 38. Kd4 {[%emt 0:00:02]} Nf3+ {[%emt 0:00:00]} 39. Kc5 {[%emt 0:00:01]} Ng5 {[%emt 0:00:03]} 40. Kb6 {[%emt 0:00:05]} Nxh3 {[%emt 0:00:05]} 41. Kxa6 {[%emt 0:00:00]} Nf2 {[%emt 0:00:02]} 42. Kb7 {[%emt 0:00:08]} Nxg4 {[%emt 0:00:02]} 43. a4 {[%emt 0:00:01]} h5 {[%emt 0:00:00]} 44. a5 {[%emt 0:00:01]} h4 {[%emt 0:00:02]} 45. a6 {[%emt 0:00:01]} h3 {[%emt 0:00:03]} 46. Ne2 {[%emt 0:00:01]} h2 {[%emt 0:00:01]} 47. Ng3 {[%emt 0:00:01]} Ne5 {[%emt 0:00:02]} 48. a7 {[%emt 0:00:01]} 1-0

[Event "Speed Chess Championship 2020"]
[Site "Online"]
[Date "2020.11.11"]
[Round "1.11"]
[White "Nepomniachtchi, Ian"]
[Black "Aronian, Levon"]
[Result "1/2-1/2"]
[ECO "C65"]
[WhiteElo "2784"]
[BlackElo "2781"]
[Annotator "ChessBase"]
[PlyCount "63"]
[EventDate "2020.10.31"]
[EventType "k.o."]
[SourceTitle "playchess.com"]
[Source "ChessBase"]
[SourceQuality "1"]
[TimeControl "180+1"]

1. e4 {[%emt 0:00:01]} e5 {[%emt 0:00:01]} 2. Nf3 {[%emt 0:00:00]} Nc6 {[%emt 0:00:01]} 3. Bb5 {[%emt 0:00:00]} Nf6 {[%emt 0:00:01]} 4. d3 {[%emt 0:00:01]} Bc5 {[%emt 0:00:01]} 5. c3 {[%emt 0:00:00]} O-O {[%emt 0:00:03]} 6. O-O {[%emt 0:00:03]} d6 {[%emt 0:00:02]} 7. Bd2 {[%emt 0:00:02]} Ne7 {[%emt 0:00:10]} 8. d4 {[%emt 0:00:08]} Bb6 {[%emt 0:00:01]} 9. Re1 {[%emt 0:00:02]} Ng6 {[%emt 0:00:02]} 10. h3 {[%emt 0:00:02]} c6 {[%emt 0:00:05]} 11. Bd3 {[%emt 0:00:02]} Re8 {[%emt 0:00:02]} 12. Na3 {[%emt 0:00:04]} d5 {[%emt 0:00:04]} 13. Bg5 {[%emt 0:00:08]} dxe4 {[%emt 0:00:20]} 14. Bxe4 {[%emt 0:00:14]} exd4 {[%emt 0:00:16]} 15. Bxf6 {[%emt 0:00:01]} Qxf6 {[%emt 0:00:12]} 16. Bxg6 {[%emt 0:00:01]} Rxe1+ {[%emt 0:00:02]} 17. Qxe1 {[%emt 0:00:00]} fxg6 {[%emt 0:00:01]} 18. Nxd4 {[%emt 0:00:09]} Bd7 {[%emt 0:00:10]} 19. Nc4 {[%emt 0:00:02]} Re8 {[%emt 0:00:11]} 20. Qd2 {[%emt 0:00:02]} Bc7 {[%emt 0:00:23]} 21. Nb5 {[%emt 0:00:02]} cxb5 {[%emt 0:00:03]} 22. Qxd7 {[%emt 0:00:02]} Qc6 {[%emt 0:00:01]} 23. Qxc6 {[%emt 0:00:06]} bxc6 {[%emt 0:00:00]} 24. Ne3 {[%emt 0:00:00]} Bb6 {[%emt 0:00:03]} 25. Re1 {[%emt 0:00:02]} Rd8 {[%emt 0:00:14]} 26. Kf1 {[%emt 0:00:01]} Rd2 {[%emt 0:00:03]} 27. Re2 {[%emt 0:00:01]} Bxe3 {[%emt 0:00:03]} 28. fxe3 {[%emt 0:00:04]} Rd1+ {[%emt 0:00:01]} 29. Re1 {[%emt 0:00:01]} Rd2 {[%emt 0:00:01]} 30. Re2 {[%emt 0:00:01]} Rd1+ {[%emt 0:00:00]} 31. Re1 {[%emt 0:00:00]} Rd2 {[%emt 0:00:01]} 32. Re2 {[%emt 0:00:02]} 1/2-1/2